fUST/lending_fUST_20250422
["ID","MTS","AMOUNT","RATE_DAILY","PERIOD"]
[358610392,1745309467948,-1374.05,0.00023013,2]
[358610393,1745309467958,-500.0,0.00023013,2]
[358610394,1745309467972,-500.0,0.00023013,2]
[358610395,1745309467982,-1084.11,0.00023013,2]
[358610396,1745309467992,-500.0,0.00023013,2]
[358610397,1745309468003,-500.61,0.00023013,2]
[358610398,1745309468013,-626.69,0.00023013,2]
[358610399,1745309468024,-500.0,0.00023013,2]
[358610400,1745309468034,-758.02,0.00023013,2]
[358610401,1745309468044,-500.0,0.00023013,2]
[358610402,1745309468055,-825.53,0.00023013,2]
[358610403,1745309468065,-500.0,0.00023013,2]
[358610404,1745309468075,-513.53653476,0.00023013,2]
[358610405,1745309468085,-151.0,0.00023013,7]
[358610406,1745309468095,-507.3779276,0.00023013,2]
[358610407,1745309468105,-151.0,0.00023013,7]
[358610408,1745309468119,-500.0,0.00023013,2]
[358610409,1745309468129,-500.0,0.00023013,2]
[358610410,1745309468139,-500.0,0.00023013,2]
[358610411,1745309468150,-500.0,0.00023013,2]
[358610412,1745309468161,-242.230268,0.00023013,7]
[358610413,1745309468172,-500.0,0.00023013,2]
[358610414,1745309468183,-382.213737,0.00023013,7]
[358610415,1745309468196,-382.213737,0.00023013,7]
[358610416,1745309468209,-500.0,0.00023013,2]
[358610417,1745309468221,-382.213737,0.00023013,7]
[358610418,1745309468234,-382.213737,0.00023013,7]
[358610419,1745309468246,-500.0,0.00023013,2]
[358610420,1745309468257,-508.662506,0.00023013,7]
[358610421,1745309468269,-508.662506,0.00023013,7]
[358610422,1745309468281,-500.0,0.00023013,2]
[358610423,1745309468293,-508.662506,0.00023013,7]
[358610424,1745309468306,-508.662506,0.00023013,7]
[358610425,1745309468320,-500.0,0.00023013,2]
[358610426,1745309468333,-500.0,0.00023013,2]
[358610427,1745309468344,-893.19,0.00023013,2]
[358610428,1745309468357,-232.52084121,0.00023013,2]
[358610429,1745309468677,-500.0,0.00021917,2]
[358610430,1745309468688,-267.47915879,0.00023013,2]
[358610431,1745309468700,-500.0,0.00023013,2]
[358610432,1745309468711,-59.47102415,0.00023013,2]
[358610433,1745309468838,-500.0,0.00021917,2]
[358610434,1745309468849,-500.0,0.00021917,2]
[358610435,1745309468867,-440.52897585,0.00023013,2]
[358610436,1745309468878,-500.0,0.00023013,2]
[358610437,1745309468890,-500.0,0.00023013,2]
[358610438,1745309468901,-220.46722973,0.00023013,2]
[358610439,1745309468914,-279.53277027,0.00023013,2]
[358610440,1745309468925,-243.79222216,0.00023013,2]
[358610441,1745309468937,-256.20777784,0.00023013,2]
[358610442,1745309468949,-51.11222217,0.00023013,2]
[358610443,1745309469179,500.0,0.0003,30]
[358610445,1745309506034,288.62622334,0.00018064,2]
[358610446,1745309555255,78943.45052961,0.0003,30]
[358611244,1745310531412,1349.11774053,0.0002,2]
[358611402,1745310632523,-250.0,0.00020546,2]
[358611403,1745310632534,-418.1986286,0.00020609,2]
[358611404,1745310632544,-199.97216251,0.00020879,2]
[358611405,1745310632553,-1598.62181015,0.00020979,2]
[358611406,1745310632562,-300.0,0.00020999,2]
[358611407,1745310632572,-1200.0,0.00020999,2]
[358611408,1745310632582,-12359.05572977,0.00021,2]
[358611423,1745310638675,-9138.05954023,0.00021,2]
[358611424,1745310638688,-199.97216251,0.00021127,2]
[358611425,1745310638698,-944.89459761,0.00021227,2]
[358611426,1745310638708,-50000.0,0.00021606,2]
[358611427,1745310638718,-202.96172792,0.00021609,2]
[358611428,1745310638727,-500.0,0.00021609,2]
[358611429,1745310638737,-500.0,0.00021609,2]
[358611430,1745310638748,-500.0,0.00021609,2]
[358611431,1745310638757,-270.0,0.00021609,2]
[358611432,1745310638767,-500.0,0.00021609,2]
[358611433,1745310638777,-272.10644501,0.00021609,2]
[358611434,1745310638787,-231.54657642,0.00021609,2]
[358611435,1745310638796,-500.0,0.00021609,2]
[358611436,1745310638806,-500.0,0.00021609,2]
[358611437,1745310638816,-597.06645975,0.00021609,2]
[358611438,1745310638826,-500.0,0.00021609,2]
[358611439,1745310638836,-500.0,0.00021609,2]
[358611440,1745310638846,-500.0,0.00021609,2]
[358611441,1745310638855,-500.0,0.00021609,2]
[358611442,1745310638865,-500.0,0.00021609,2]
[358611443,1745310638875,-539.154681,0.0002161,2]
[358611444,1745310638884,-500.0,0.0002161,2]
[358611445,1745310638895,-552.25238487,0.0002161,2]
[358611446,1745310638905,-212.29807599,0.0002161,2]
[358611447,1745310638915,-500.0,0.0002161,2]
[358611448,1745310638926,-370000.0,0.00021611,2]
[358611449,1745310638937,-161.42759235,0.00021798,2]
[358611450,1745310638948,-161.42759233,0.00021808,2]
[358611451,1745310638959,-161.42759233,0.00021817,2]
[358611452,1745310638972,-504.27295311,0.00021898,2]
[358611453,1745310638982,-207.4,0.00021904,2]
[358611454,1745310638992,-500.0,0.00021917,2]
[358611455,1745310639003,-151.0,0.00021917,2]
[358611456,1745310639013,-151.0,0.00021917,2]
[358611457,1745310639023,-575.75777399,0.00021917,2]
[358611458,1745310639032,-500.0,0.00021917,2]
[358611459,1745310639042,-500.0,0.00021917,2]
[358611460,1745310639054,-500.0,0.00021917,2]
[358611461,1745310639064,-500.0,0.00021917,2]
[358611462,1745310639074,-500.0,0.00021917,2]
[358611463,1745310639083,-500.0,0.00021917,2]
[358611464,1745310639093,-547.01769651,0.00021917,2]
[358611465,1745310639102,-500.0,0.00021917,2]
[358611466,1745310639111,-500.0,0.00021917,2]
[358611467,1745310639120,-500.0,0.00021917,2]
[358611468,1745310639129,-500.0,0.00021917,2]
[358611469,1745310639139,-500.0,0.00021917,2]
[358611470,1745310639323,-628.46444244,0.00021917,2]
[358611471,1745310639333,-500.0,0.00021917,2]
[358611472,1745310639344,-212.65639608,0.00021917,2]
[358611473,1745310639354,-500.0,0.00021917,2]
[358611474,1745310639366,-500.0,0.00021917,2]
[358611475,1745310639376,-685.92,0.00021917,2]
[358611476,1745310639386,-500.0,0.00021917,2]
[358611477,1745310639397,-500.0,0.00021917,2]
[358611478,1745310639407,-500.0,0.00021917,2]
[358611479,1745310639416,-500.65826976,0.00021917,2]
[358611480,1745310639426,-502.75279379,0.00021917,2]
[358611481,1745310639438,-500.0,0.00021917,2]
[358611482,1745310639448,-500.0,0.00021917,2]
[358611483,1745310639457,-500.0,0.00021917,2]
[358611484,1745310639467,-500.82544185,0.00021917,2]
[358611485,1745310639477,-500.0,0.00021917,2]
[358611486,1745310639486,-500.0,0.00021917,2]
[358611487,1745310639496,-500.0,0.00021917,2]
[358611488,1745310639506,-500.0,0.00021917,2]
[358611489,1745310639515,-500.0,0.00021917,2]
[358611490,1745310639525,-500.0,0.00021917,2]
[358611491,1745310639534,-500.0,0.00021917,2]
[358611492,1745310639544,-502.09964319,0.00021917,2]
[358611493,1745310639553,-500.0,0.00021917,2]
[358611494,1745310639563,-501.44029348,0.00021917,2]
[358611495,1745310639573,-500.0,0.00021917,2]
[358611496,1745310639583,-513.11844049,0.00021917,2]
[358611497,1745310639592,-500.0,0.00021917,2]
[358611498,1745310639602,-500.0,0.00021917,2]
[358611499,1745310639612,-500.0,0.00021917,2]
[358611500,1745310639622,-500.0,0.00021917,2]
[358611501,1745310639632,-500.0,0.00021917,2]
[358611502,1745310639642,-500.0,0.00021917,2]
[358611503,1745310639652,-500.0,0.00021917,2]
[358611504,1745310639662,-500.0,0.00021917,2]
[358611505,1745310639673,-500.0,0.00021917,2]
[358611506,1745310639683,-504.0096716,0.00021917,2]
[358611507,1745310639694,-500.0,0.00021917,2]
[358611508,1745310639705,-631.68,0.00021917,2]
[358611509,1745310639715,-500.0,0.00021917,2]
[358611510,1745310639725,-500.0,0.00021917,2]
[358611511,1745310639735,-500.0,0.00021917,2]
[358611512,1745310639745,-500.0,0.00021917,2]
[358611513,1745310639754,-500.0,0.00021917,2]
[358611514,1745310639764,-500.0,0.00021917,2]
[358611515,1745310639774,-500.0,0.00021917,2]
[358611516,1745310639784,-500.0,0.00021917,2]
[358611517,1745310639794,-500.0,0.00021917,2]
[358611518,1745310639804,-500.0,0.00021917,2]
[358611519,1745310639814,-500.0,0.00021917,2]
[358611520,1745310639824,-500.0,0.00021917,2]
[358611521,1745310639834,-500.0,0.00021917,2]
[358611522,1745310639844,-500.54663892,0.00021917,2]
[358611523,1745310639853,-504.24568967,0.00021917,2]
[358611524,1745310639865,-500.0,0.00021917,2]
[358611525,1745310639874,-500.0,0.00021917,2]
[358611526,1745310639884,-500.0,0.00021917,2]
[358611527,1745310639893,-502.16583751,0.00021917,2]
[358611528,1745310639904,-500.0,0.00021917,2]
[358611529,1745310639913,-500.0,0.00021917,2]
[358611530,1745310639923,-500.0,0.00021917,2]
[358611531,1745310639932,-500.0,0.00021917,2]
[358611533,1745310639942,-500.0,0.00021917,2]
[358611534,1745310639953,-500.0,0.00021917,2]
[358611535,1745310639962,-500.0,0.00021917,2]
[358611536,1745310639973,-1000.0,0.00021917,2]
[358611537,1745310639996,-574.25948825,0.00021917,2]
[358611538,1745310640008,-500.0,0.00021917,2]
[358611539,1745310640019,-500.0,0.00021917,2]
[358611540,1745310640029,-500.0,0.00021917,2]
[358611541,1745310640039,-505.1590037,0.00021917,2]
[358611542,1745310640049,-502.82191151,0.00021917,2]
[358611543,1745310640059,-500.0,0.00021917,2]
[358611544,1745310640070,-513.88346608,0.00021917,2]
[358611545,1745310640080,-500.0,0.00021917,2]
[358611546,1745310640091,-500.0,0.00021917,2]
[358611547,1745310640102,-599.28146797,0.00021917,2]
[358611548,1745310640113,-500.0,0.00021917,2]
[358611549,1745310640123,-500.0,0.00021917,2]
[358611550,1745310640134,-500.0,0.00021917,2]
[358611551,1745310640145,-200.95080609,0.00021917,2]
[358611552,1745310640155,-500.0,0.00021917,2]
[358611553,1745310640165,-500.0,0.00021917,2]
[358611554,1745310640175,-215.15714189,0.00021917,2]
[358611555,1745310640185,-216.4177862,0.00021917,2]
[358611556,1745310640196,-530.4393112,0.00021917,2]
[358611557,1745310640206,-500.0,0.00021917,2]
[358611558,1745310640216,-500.0,0.00021917,2]
[358611559,1745310640226,-500.0,0.00021917,2]
[358611560,1745310640236,-500.0,0.00021917,2]
[358611561,1745310640247,-500.0,0.00021917,2]
[358611562,1745310640257,-500.0,0.00021917,2]
[358611563,1745310640267,-500.0,0.00021917,2]
[358611564,1745310640277,-500.0,0.00021917,2]
[358611565,1745310640287,-731.14,0.00021917,2]
[358611566,1745310640297,-500.80542569,0.00021917,2]
[358611567,1745310640307,-500.0,0.00021917,2]
[358611568,1745310640316,-500.0,0.00021917,2]
[358611569,1745310640327,-500.0,0.00021917,2]
[358611570,1745310640337,-500.0,0.00021917,2]
[358611571,1745310640347,-500.0,0.00021917,2]
[358611572,1745310640359,-503.59119997,0.00021917,2]
[358611573,1745310640370,-500.0,0.00021917,2]
[358611574,1745310640380,-500.0,0.00021917,2]
[358611575,1745310640390,-500.0,0.00021917,2]
[358611576,1745310640401,-500.0,0.00021917,2]
[358611577,1745310640410,-500.0,0.00021917,2]
[358611578,1745310640420,-501.41201005,0.00021917,2]
[358611579,1745310640430,-500.0,0.00021917,2]
[358611580,1745310640442,-500.82449963,0.00021917,2]
[358611581,1745310640452,-500.0,0.00021917,2]
[358611582,1745310640462,-462.06803139,0.00021917,2]
[358611583,1745310640472,-500.0,0.00021917,2]
[358611584,1745310640482,-500.0,0.00021917,2]
[358611585,1745310640492,-500.0,0.00021917,2]
[358611586,1745310640501,-500.0,0.00021917,2]
[358611587,1745310640512,-500.0,0.00021917,2]
[358611588,1745310640523,-500.0,0.00021917,2]
[358611589,1745310640534,-500.0,0.00021917,2]
[358611590,1745310640546,-500.0,0.00021917,2]
[358611591,1745310640557,-500.0,0.00021917,2]
[358611592,1745310640567,-500.32266971,0.00021917,2]
[358611593,1745310640576,-500.0,0.00021917,2]
[358611594,1745310640591,-500.0,0.00021917,2]
[358611595,1745310640602,-500.0,0.00021917,2]
[358611596,1745310640611,-500.0,0.00021917,2]
[358611597,1745310640622,-500.0,0.00021917,2]
[358611598,1745310640631,-500.0,0.00021917,2]
[358611599,1745310640641,-500.0,0.00021917,2]
[358611600,1745310640651,-503.43826357,0.00021917,2]
[358611601,1745310640661,-500.0,0.00021917,2]
[358611602,1745310640671,-500.0,0.00021917,2]
[358611604,1745310640682,-503.55488466,0.00021917,2]
[358611605,1745310640692,-500.0,0.00021917,2]
[358611606,1745310640703,-500.0,0.00021917,2]
[358611607,1745310640713,-500.0,0.00021917,2]
[358611608,1745310640723,-500.0,0.00021917,2]
[358611609,1745310640734,-500.0,0.00021917,2]
[358611610,1745310640743,-500.0,0.00021917,2]
[358611611,1745310640754,-500.0,0.00021917,2]
[358611612,1745310640764,-500.0,0.00021917,2]
[358611613,1745310640774,-500.0,0.00021917,2]
[358611614,1745310640784,-500.0,0.00021917,2]
[358611615,1745310640795,-500.59206856,0.00021917,2]
[358611616,1745310640804,-500.0,0.00021917,2]
[358611617,1745310640814,-500.43082469,0.00021917,2]
[358611618,1745310640824,-500.0,0.00021917,2]
[358611619,1745310640834,-514.91713716,0.00021917,2]
[358611620,1745310640843,-518.89403622,0.00021917,2]
[358611621,1745310640853,-535.49989105,0.00021917,2]
[358611622,1745310640863,-500.0,0.00021917,2]
[358611623,1745310640872,-500.0,0.00021917,2]
[358611624,1745310640882,-510.91112369,0.00021917,2]
[358611625,1745310640893,-500.0,0.00021917,2]
[358611626,1745310640903,-500.0,0.00021917,2]
[358611627,1745310640912,-500.0,0.00021917,2]
[358611628,1745310640922,-500.0,0.00021917,2]
[358611629,1745310640932,-501.2563291,0.00021917,2]
[358611630,1745310640943,-500.0,0.00021917,2]
[358611631,1745310640953,-487.19780915,0.00021917,2]
[358611632,1745310640962,-502.31373735,0.00021917,2]
[358611633,1745310640972,-500.0,0.00021917,2]
[358611634,1745310640982,-500.0,0.00021917,2]
[358611635,1745310640992,-647.52603563,0.00021917,2]
[358611636,1745310641001,-500.0,0.00021917,2]
[358611637,1745310641010,-500.0,0.00021917,2]
[358611638,1745310641020,-500.0,0.00021917,2]
[358611639,1745310641030,-549.37,0.00021917,2]
[358611640,1745310641040,-500.0,0.00021917,2]
[358611641,1745310641050,-500.0,0.00021917,2]
[358611642,1745310641060,-502.64797256,0.00021917,2]
[358611643,1745310641070,-556.00305879,0.00021917,2]
[358611644,1745310641079,-500.0,0.00021917,2]
[358611645,1745310641090,-501.77784407,0.00021917,2]
[358611646,1745310641100,-501.63691401,0.00021917,2]
[358611647,1745310641110,-500.0,0.00021917,2]
[358611648,1745310641120,-500.0,0.00021917,2]
[358611649,1745310641130,-500.0,0.00021917,2]
[358611650,1745310641140,-500.36119808,0.00021917,2]
[358611651,1745310641150,-500.0,0.00021917,2]
[358611652,1745310641159,-505.91198158,0.00021917,2]
[358611653,1745310641169,-500.0,0.00021917,2]
[358611654,1745310641178,-508.78431858,0.00021917,2]
[358611655,1745310641188,-500.0,0.00021917,2]
[358611656,1745310641198,-500.0,0.00021917,2]
[358611657,1745310641211,-501.14443384,0.00021917,2]
[358611658,1745310641221,-500.0,0.00021917,2]
[358611659,1745310641231,-512.66133037,0.00021917,2]
[358611660,1745310641240,-502.30571358,0.00021917,2]
[358611661,1745310641250,-500.0,0.00021917,2]
[358611662,1745310641261,-503.35884048,0.00021917,2]
[358611663,1745310641270,-500.0,0.00021917,2]
[358611664,1745310641280,-505.02602121,0.00021917,2]
[358611666,1745310641290,-500.0,0.00021917,2]
[358611667,1745310641300,-500.0,0.00021917,2]
[358611668,1745310641310,-500.0,0.00021917,2]
[358611669,1745310641320,-504.54844696,0.00021917,2]
[358611670,1745310641329,-500.0,0.00021917,2]
[358611671,1745310641339,-501.65125686,0.00021917,2]
[358611672,1745310641348,-505.54069586,0.00021917,2]
[358611673,1745310641361,-500.0,0.00021917,2]
[358611674,1745310641371,-501.65465623,0.00021917,2]
[358611675,1745310641381,-503.8356674,0.00021917,2]
[358611676,1745310641391,-500.0,0.00021917,2]
[358611677,1745310641400,-500.0,0.00021917,2]
[358611678,1745310641410,-501.62931202,0.00021917,2]
[358611679,1745310641420,-194.14500441,0.00021917,2]
[358611680,1745310641429,-500.0,0.00021917,2]
[358611681,1745310641441,-244.13751357,0.00021917,2]
[358611682,1745310641450,-502.67088859,0.00021917,2]
[358611683,1745310641460,-500.0,0.00021917,2]
[358611684,1745310641470,-501.00251444,0.00021917,2]
[358611685,1745310641479,-500.0,0.00021917,2]
[358611686,1745310641489,-501.93523203,0.00021917,2]
[358611687,1745310641499,-500.0,0.00021917,2]
[358611688,1745310641509,-500.0,0.00021917,2]
[358611689,1745310641519,-502.57807293,0.00021917,2]
[358611690,1745310641530,-500.0,0.00021917,2]
[358611691,1745310641540,-500.0,0.00021917,2]
[358611692,1745310641550,-687.94,0.00021917,2]
[358611693,1745310641560,-500.0,0.00021917,2]
[358611694,1745310641571,-500.0,0.00021917,2]
[358611695,1745310641580,-506.27016928,0.00021917,2]
[358611696,1745310641590,-500.0,0.00021917,2]
[358611697,1745310641600,-500.0,0.00021917,2]
[358611698,1745310641610,-501.51697049,0.00021917,2]
[358611699,1745310641620,-500.0,0.00021917,2]
[358611700,1745310641631,-500.0,0.00021917,2]
[358611701,1745310641641,-500.0,0.00021917,2]
[358611702,1745310641651,-500.0,0.00021917,2]
[358611703,1745310641662,-516.09209659,0.00021917,2]
[358611704,1745310641671,-500.0,0.00021917,2]
[358611705,1745310641682,-500.0,0.00021917,2]
[358611706,1745310641692,-501.06957214,0.00021917,2]
[358611707,1745310641702,-500.0,0.00021917,2]
[358611708,1745310641712,-504.62886213,0.00021917,2]
[358611709,1745310641721,-500.0,0.00021917,2]
[358611710,1745310641732,-500.0,0.00021917,2]
[358611711,1745310641742,-1145.04,0.00021917,2]
[358611712,1745310641754,-500.0,0.00021917,2]
[358611713,1745310641764,-500.0,0.00021917,2]
[358611714,1745310641774,-500.0,0.00021917,2]
[358611715,1745310641784,-502.58821979,0.00021917,2]
[358611716,1745310641794,-502.01298322,0.00021917,2]
[358611717,1745310641804,-500.0,0.00021917,2]
[358611718,1745310641815,-522.24,0.00021917,2]
[358611719,1745310641825,-500.0,0.00021917,2]
[358611720,1745310641835,-506.65457999,0.00021917,2]
[358611721,1745310641845,-500.0,0.00021917,2]
[358611722,1745310641855,-500.0,0.00021917,2]
[358611723,1745310641866,-502.47844044,0.00021917,2]
[358611724,1745310641877,-500.0,0.00021917,2]
[358611726,1745310641886,-500.0,0.00021917,2]
[358611727,1745310641897,-500.0,0.00021917,2]
[358611728,1745310641907,-501.08013338,0.00021917,2]
[358611729,1745310641917,-500.0,0.00021917,2]
[358611730,1745310641927,-629.66162781,0.00021917,2]
[358611731,1745310641939,-372.76242901,0.00021917,2]
[358611732,1745310641949,-500.0,0.00021917,2]
[358611733,1745310641960,-500.0,0.00021917,2]
[358611735,1745310641971,-500.0,0.00021917,2]
[358611736,1745310641982,-503.47947882,0.00021917,2]
[358611737,1745310641991,-500.0,0.00021917,2]
[358611739,1745310642001,-503.79091632,0.00021917,2]
[358611741,1745310642010,-500.0,0.00021917,2]
[358611742,1745310642021,-505.20018493,0.00021917,2]
[358611743,1745310642031,-505.15606533,0.00021917,2]
[358611744,1745310642041,-500.0,0.00021917,2]
[358611745,1745310642051,-500.0,0.00021917,2]
[358611746,1745310642061,-503.02696017,0.00021917,2]
[358611747,1745310642071,-500.0,0.00021917,2]
[358611748,1745310642080,-500.0,0.00021917,2]
[358611749,1745310642090,-502.36041253,0.00021917,2]
[358611750,1745310642099,-503.06066602,0.00021917,2]
[358611751,1745310642107,-500.0,0.00021917,2]
[358611752,1745310642133,-500.0,0.00021917,2]
[358611753,1745310642143,-500.0,0.00021917,2]
[358611754,1745310642153,-500.0,0.00021917,2]
[358611756,1745310642163,-500.0,0.00021917,2]
[358611757,1745310642173,-500.0,0.00021917,2]
[358611758,1745310642182,-500.0,0.00021917,2]
[358611759,1745310642192,-500.0,0.00021917,2]
[358611760,1745310642201,-500.0,0.00021917,2]
[358611761,1745310642211,-500.0,0.00021917,2]
[358611762,1745310642221,-503.07774411,0.00021917,2]
[358611764,1745310642231,-500.0,0.00021917,2]
[358611765,1745310642242,-500.0,0.00021917,2]
[358611766,1745310642252,-500.0,0.00021917,2]
[358611767,1745310642261,-500.0,0.00021917,2]
[358611768,1745310642270,-500.9550273,0.00021917,2]
[358611769,1745310642280,-500.0,0.00021917,2]
[358611770,1745310642290,-501.13022567,0.00021917,2]
[358611771,1745310642297,-500.0,0.00021917,2]
[358611772,1745310642306,-500.0,0.00021917,2]
[358611773,1745310642313,-500.0,0.00021917,2]
[358611774,1745310642320,-503.84361766,0.00021917,2]
[358611775,1745310642328,-500.0,0.00021917,2]
[358611776,1745310642337,-504.19409519,0.00021917,2]
[358611777,1745310642346,-517.94684188,0.00021917,2]
[358611778,1745310642354,-744.32,0.00021917,2]
[358611779,1745310642366,-500.0,0.00021917,2]
[358611780,1745310642374,-678.24,0.00021917,2]
[358611781,1745310642384,-500.0,0.00021917,2]
[358611782,1745310642392,-500.0,0.00021917,2]
[358611783,1745310642401,-500.0,0.00021917,2]
[358611784,1745310642409,-500.0,0.00021917,2]
[358611785,1745310642418,-601.61337324,0.00021917,2]
[358611786,1745310642425,-500.0,0.00021917,2]
[358611787,1745310642435,-500.0,0.00021917,2]
[358611788,1745310642445,-236.84519714,0.00021917,2]
[358611789,1745310642453,-500.0,0.00021917,2]
[358611790,1745310642463,-502.53201316,0.00021917,2]
[358611791,1745310642470,-637.96,0.00021917,2]
[358611792,1745310642477,-500.0,0.00021917,2]
[358611793,1745310642487,-480.72509121,0.00021917,2]
[358611794,1745310642496,-500.0,0.00021917,2]
[358611795,1745310642504,-501.88088184,0.00021917,2]
[358611796,1745310642513,-501.60188421,0.00021917,2]
[358611797,1745310642521,-500.0,0.00021917,2]
[358611798,1745310642530,-500.0,0.00021917,2]
[358611799,1745310642538,-501.51962731,0.00021917,2]
[358611800,1745310642545,-500.0,0.00021917,2]
[358611801,1745310642553,-500.0,0.00021917,2]
[358611802,1745310642560,-500.0,0.00021917,2]
[358611804,1745310642754,-501.94659805,0.00021917,2]
[358611805,1745310642763,-500.0,0.00021917,2]
[358611806,1745310642771,-500.0,0.00021917,2]
[358611807,1745310642779,-500.0,0.00021917,2]
[358611808,1745310642786,-500.0,0.00021917,2]
[358611809,1745310642795,-1523.12,0.00021917,2]
[358611810,1745310642803,-500.0,0.00021917,2]
[358611811,1745310642811,-500.0,0.00021917,2]
[358611812,1745310642820,-402.96631046,0.00021917,2]
[358611813,1745310642829,-500.0,0.00021917,2]
[358611814,1745310642836,-500.0,0.00021917,2]
[358611815,1745310642843,-500.0,0.00021917,2]
[358611816,1745310642852,-500.0,0.00021917,2]
[358611817,1745310642860,-500.0,0.00021917,2]
[358611818,1745310642874,-500.0,0.00021917,2]
[358611819,1745310642884,-500.0,0.00021917,2]
[358611820,1745310642893,-500.0,0.00021917,2]
[358611821,1745310642902,-500.0,0.00021917,2]
[358611822,1745310642912,-500.0,0.00021917,2]
[358611823,1745310642924,-500.0,0.00021917,2]
[358611824,1745310642936,-689.97,0.00021917,2]
[358611825,1745310642952,-500.0,0.00021917,2]
[358611826,1745310642963,-500.0,0.00021917,2]
[358611827,1745310642974,-500.0,0.00021917,2]
[358611828,1745310642984,-500.0,0.00021917,2]
[358611829,1745310642995,-500.0,0.00021917,2]
[358611830,1745310643005,-500.0,0.00021917,2]
[358611831,1745310643016,-500.0,0.00021917,2]
[358611832,1745310643027,-500.0,0.00021917,2]
[358611833,1745310643036,-500.0,0.00021917,2]
[358611834,1745310643047,-500.0,0.00021917,2]
[358611835,1745310643059,-500.0,0.00021917,2]
[358611836,1745310643069,-500.0,0.00021917,2]
[358611838,1745310643080,-500.0,0.00021917,2]
[358611839,1745310643092,-502.22130498,0.00021917,2]
[358611840,1745310643103,-500.89204275,0.00021917,2]
[358611841,1745310643113,-504.28978164,0.00021917,2]
[358611843,1745310643123,-565.86,0.00021917,2]
[358611845,1745310643133,-500.0,0.00021917,2]
[358611847,1745310643142,-500.0,0.00021917,2]
[358611848,1745310643152,-500.0,0.00021917,2]
[358611850,1745310643162,-500.0,0.00021917,2]
[358611852,1745310643171,-500.0,0.00021917,2]
[358611854,1745310643181,-500.0,0.00021917,2]
[358611855,1745310643191,-432.62457983,0.00021917,2]
[358611856,1745310643200,-500.0,0.00021917,2]
[358611857,1745310643210,-500.0,0.00021917,2]
[358611858,1745310643219,-500.0,0.00021917,2]
[358611859,1745310643229,-500.0,0.00021917,2]
[358611860,1745310643238,-500.0,0.00021917,2]
[358611861,1745310643248,-500.0,0.00021917,2]
[358611862,1745310643258,-500.0,0.00021917,2]
[358611863,1745310643266,-500.0,0.00021917,2]
[358611864,1745310643276,-500.0,0.00021917,2]
[358611865,1745310643286,-500.47103987,0.00021917,2]
[358611866,1745310643296,-500.0,0.00021917,2]
[358611867,1745310643306,-500.0,0.00021917,2]
[358611868,1745310643316,-500.0,0.00021917,2]
[358611869,1745310643325,-500.0,0.00021917,2]
[358611870,1745310643336,-500.0,0.00021917,2]
[358611871,1745310643345,-500.0,0.00021917,2]
[358611872,1745310643357,-500.0,0.00021917,2]
[358611873,1745310643370,-500.0,0.00021917,2]
[358611874,1745310643381,-495.89962436,0.00021917,2]
[358611875,1745310643390,-500.0,0.00021917,2]
[358611876,1745310643402,-501.05278398,0.00021917,2]
[358611877,1745310643412,-500.0,0.00021917,2]